bitfinex/quotes_SOLUSD_20250616
["timestamp","ask_amount","ask_price","bid_price","bid_amount"]
[1750113038557,3.60429635,156.92,156.91,6.37283312]
[1750113038763,3.60429635,156.92,156.89,6.37389253]
[1750113039456,14.4171854,156.96,156.89,6.37389253]
[1750113039635,3.60429635,156.92,156.89,6.37389253]
[1750113040871,5.63294942,156.92,156.89,6.37389253]
[1750113041956,5.63294942,156.9,156.89,6.37389253]
[1750113042264,5.63294942,156.92,156.89,6.37389253]
[1750113043766,5.63294942,156.92,156.88,22.30990197]
[1750113043968,5.63294942,156.91,156.88,6.37429882]
[1750113045468,5.63294942,156.9,156.88,6.37429882]
[1750113045843,5.63294942,156.9,156.86,22.31284719]
[1750113051667,4.74219159,156.93,156.89,5.63294942]
[1750113051981,5.63294942,156.98,156.92,5.63294942]
[1750113052279,5.63294942,156.97,156.92,5.63294942]
[1750113052438,5.63294942,156.97,156.93,6.37226789]
[1750113054458,5.63294942,156.94,156.91,6.3730801]
[1750113054658,5.63294942,156.92,156.87,6.37470516]
[1750113054853,5.63294942,156.88,156.85,6.37551801]
[1750113055052,5.63294942,156.87,156.85,6.37551801]
[1750113055580,5.63294942,156.86,156.8,0.0828321]
[1750113055888,6.0446,156.84,156.8,6.46038312]
[1750113056179,5.63294942,156.84,156.8,6.46038312]
[1750113056659,5.63294942,156.83,156.8,6.46038312]
[1750113057571,6.37478348,156.87,156.8,6.46038312]
[1750113057572,5.63294942,156.82,156.8,6.46038312]
[1750113057784,5.63294942,156.82,156.8,0.0828321]
[1750113059170,5.63294942,156.82,156.8,6.46038312]
[1750113059548,5.63294942,156.83,156.8,6.46038312]
[1750113060177,5.63294942,156.81,156.8,0.0828321]
[1750113060958,12.14574942,156.81,156.8,0.0828321]
[1750113061253,50.15584315,156.81,156.8,0.0828321]
[1750113061469,42.94765358,156.81,156.72,8.33333333]
[1750113061658,5.63294942,156.73,156.72,8.33333333]
[1750113062675,26.0,156.76,156.72,8.33333333]
[1750113062875,5.63294942,156.73,156.72,8.33333333]
[1750113063055,11.26589884,156.73,156.72,8.33333333]
[1750113063478,17.64629825,156.73,156.72,8.33333333]
[1750113064107,26.0,156.7,156.63,19.63918382]
[1750113064375,5.63294942,156.66,156.62,27.98003152]
[1750113064579,26.0,156.7,156.62,22.3470821]
[1750113064767,5.63294942,156.64,156.62,6.3848806]
[1750113065162,5.63294942,156.65,156.62,6.3848806]
[1750113065360,5.63294942,156.65,156.6,5.63294942]
[1750113065361,5.63294942,156.65,156.61,22.34850902]
[1750113065564,5.63294942,156.66,156.62,5.63294942]
[1750113066384,5.63294942,156.66,156.61,27.98145844]
[1750113066563,5.63294942,156.65,156.61,27.98145844]
[1750113067569,5.63294942,156.65,156.61,22.34850902]
[1750113067884,5.63294942,156.64,156.61,22.34850902]
[1750113069280,32.38179246,156.7,156.58,60.61520335]
[1750113069281,5.63294942,156.62,156.58,60.61520335]
[1750113069479,5.63294942,156.62,156.59,6.38610383]
[1750113069679,6.5214,156.66,156.59,59.91483203]
[1750113069887,5.63294942,156.64,156.59,27.98431284]
[1750113070066,5.63294942,156.62,156.59,22.35136342]
[1750113071674,6.5214,156.66,156.59,22.35136342]
[1750113071876,5.63294942,156.64,156.59,27.98431284]
[1750113072084,5.63294942,156.64,156.6,5.63294942]
[1750113072269,5.63294942,156.62,156.59,22.35136342]
[1750113072477,5.63294942,156.6,156.59,6.38610383]
[1750113073279,5.63294942,156.6,156.57,6.38691958]
[1750113073588,5.63294942,156.58,156.54,6.3881436]
[1750113073899,5.63294942,156.56,156.54,6.3881436]
[1750113074574,5.63294942,156.57,156.54,22.35850261]
[1750113075375,5.63294942,156.57,156.54,15.97035901]
[1750113076412,5.63294942,156.58,156.54,15.97035901]
[1750113076909,5.63294942,156.6,156.55,24.28259828]
[1750113077119,5.63294942,156.6,156.56,5.63294942]
[1750113077481,5.63294942,156.61,156.57,22.35421855]
[1750113078002,5.63294942,156.58,156.57,6.38691958]
[1750113079605,5.63294942,156.58,156.54,15.96947899]
[1750113079816,5.63294942,156.57,156.54,15.96947899]
[1750113080096,5.63294942,156.58,156.54,15.96947899]
[1750113082199,5.63294942,156.58,156.54,22.35762259]
[1750113082399,26.0,156.62,156.54,22.35762259]
[1750113082400,5.63294942,156.59,156.54,22.35762259]
[1750113083223,5.63294942,156.58,156.54,22.35762259]
[1750113083620,5.63294942,156.55,156.54,6.3881436]
[1750113083806,26.0,156.52,156.43,31.96223711]
[1750113084009,26.0,156.52,156.39,1.331148]
[1750113084010,26.0,156.52,156.45,6.39181847]
[1750113084193,26.0,156.5,156.45,6.39181847]
[1750113084527,8.55957856,156.53,156.45,6.39181847]
[1750113084740,8.55957856,156.53,156.45,12.02476789]
[1750113084913,14.19252798,156.53,156.48,5.63294942]
[1750113085111,8.55957856,156.53,156.49,26.0]
[1750113085630,8.55957856,156.53,156.52,5.63294942]
[1750113085802,8.55957856,156.53,156.51,5.63294942]
[1750113086434,8.55957856,156.53,156.5,18.64964886]
[1750113086435,8.55957856,156.53,156.52,6.38895987]
[1750113086806,14.19252798,156.53,156.5,6.38977635]
[1750113087127,5.63294942,156.52,156.5,6.38977635]
[1750113087310,14.19252798,156.53,156.5,6.38977635]
[1750113088032,14.19252798,156.53,156.49,22.36464851]
[1750113088801,8.55957856,156.53,156.49,27.99759793]
[1750113089608,8.55957856,156.53,156.5,5.63294942]
[1750113089825,8.55957856,156.53,156.51,6.38936809]
[1750113090443,8.55957856,156.53,156.52,5.63294942]
[1750113090622,8.55957856,156.53,156.51,12.02231751]
[1750113092723,8.55957856,156.53,156.51,6.38936809]
[1750113094054,8.55957856,156.53,156.51,12.02231751]
[1750113095225,8.55957856,156.53,156.51,6.38936809]
[1750113096251,14.19252798,156.53,156.49,22.36464851]
[1750113097326,8.55957856,156.53,156.51,5.63294942]
[1750113098222,8.55957856,156.53,156.52,6.38895987]
[1750113098425,8.55957856,156.53,156.52,12.02190929]
[1750113098919,8.55957856,156.53,156.52,6.38895987]
[1750113099322,8.55957856,156.53,156.52,32.38895987]
[1750113104440,8.55957856,156.53,156.52,6.38895987]
[1750113105634,8.55957856,156.53,156.51,6.38936809]
[1750113106933,8.55957856,156.53,156.46,22.36899369]
[1750113106934,10.32743312,156.52,156.46,22.36899369]
[1750113107134,4.6944837,156.51,156.46,48.36899369]
[1750113107350,23.21803913,156.53,156.46,32.39140994]
[1750113107351,10.32956932,156.5,156.46,32.39140994]
[1750113107549,5.63294942,156.5,156.46,32.39140994]
[1750113107733,10.32933555,156.49,156.48,26.0]
[1750113107927,10.32933555,156.49,156.46,6.39140994]
[1750113108226,10.33088228,156.48,156.46,6.39140994]
[1750113108432,5.63294942,156.49,156.46,6.39140994]
[1750113108740,4.69782137,156.48,156.46,6.39140994]
[1750113108927,5.63294942,156.49,156.45,22.37132446]
[1750113109127,22.77837289,156.53,156.45,22.37132446]
[1750113109329,10.331857,156.52,156.47,5.63294942]
[1750113109551,4.69890758,156.51,156.47,5.63294942]
[1750113109853,5.63294942,156.52,156.47,5.63294942]
[1750113110151,10.33215758,156.51,156.46,5.63294942]
[1750113110339,4.69920816,156.5,156.46,5.63294942]
[1750113110543,5.63294942,156.51,156.46,5.63294942]
[1750113110741,4.69983498,156.5,156.46,5.63294942]
[1750113110945,5.63294942,156.49,156.45,22.37132446]
[1750113111135,5.63294942,156.5,156.45,28.00427388]
[1750113111858,10.33407624,156.49,156.45,22.37132446]
[1750113112037,5.63294942,156.49,156.45,22.37132446]
[1750113113444,5.63294942,156.5,156.45,22.37132446]
[1750113113967,5.63294942,156.46,156.44,29.97886459]
[1750113114182,4.70505805,156.45,156.44,10.37109164]
[1750113114338,4.7031626,156.49,156.44,10.37109164]
[1750113114538,9.40876451,156.48,156.45,5.63294942]
[1750113114751,4.7031626,156.5,156.45,5.63294942]
[1750113115064,6.36,156.51,156.46,5.63294942]
[1750113115065,4.70599025,156.49,156.46,5.63294942]
[1750113115267,4.70599025,156.49,156.44,36.37109164]
[1750113115268,6.36,156.51,156.44,36.37109164]
[1750113115579,15.04248422,156.5,156.44,36.37109164]
[1750113115736,4.70391701,156.49,156.44,36.37109164]
[1750113115938,10.33855184,156.5,156.46,6.39140994]
[1750113116261,4.70426238,156.49,156.46,6.39140994]
[1750113116447,10.34022865,156.5,156.46,6.39140994]
[1750113116648,4.70436071,156.49,156.46,6.39140994]
[1750113116848,5.63294942,156.5,156.46,6.39140994]
[1750113117047,10.33731595,156.49,156.44,42.00366966]
[1750113117248,4.71188787,156.48,156.44,42.00366966]
[1750113117470,4.71188787,156.47,156.44,36.37072024]
[1750113117772,5.63294942,156.47,156.44,36.37072024]
[1750113117951,10.34396333,156.46,156.44,3.97886459]
[1750113118149,4.70907958,156.48,156.44,3.97886459]
[1750113118333,5.63294942,156.46,156.44,3.97886459]
[1750113119256,5.63294942,156.45,156.44,3.97886459]
[1750113119479,10.33867307,156.45,156.44,3.97886459]
[1750113119640,4.70572365,156.45,156.44,3.97886459]
[1750113119846,19.18643602,156.5,156.44,10.37106162]
[1750113120041,4.70675746,156.49,156.44,16.00401104]
[1750113120247,4.70675746,156.48,156.45,5.63294942]
[1750113120468,10.3401873,156.49,156.45,5.63294942]
[1750113120659,8.0875,156.5,156.45,5.63294942]
[1750113120860,5.63294942,156.48,156.44,10.37106162]
[1750113121080,5.63294942,156.49,156.44,16.00401104]
[1750113121262,5.63294942,156.48,156.44,10.37106162]
[1750113121581,10.34034468,156.49,156.44,16.00401104]
[1750113121801,5.63294942,156.48,156.44,10.37106162]
[1750113122490,5.63294942,156.47,156.44,10.37106162]
[1750113122707,5.63294942,156.48,156.44,10.37106162]
[1750113123006,10.33913908,156.49,156.44,16.00401104]
[1750113123292,8.0875,156.5,156.44,16.00401104]
[1750113123293,5.63294942,156.48,156.44,16.00401104]
[1750113123490,5.63294942,156.48,156.44,10.37106162]
[1750113123790,5.63294942,156.47,156.44,10.37106162]
[1750113124682,10.34213571,156.48,156.44,10.37106162]
[1750113124889,5.63294942,156.48,156.44,10.37106162]
[1750113125676,10.34020411,156.48,156.44,10.37106162]
[1750113126007,5.63294942,156.48,156.44,10.37106162]
[1750113126495,10.33953974,156.49,156.44,10.37106162]
[1750113126706,5.63294942,156.49,156.44,10.37106162]
[1750113126859,5.63294942,156.48,156.44,10.37106162]
[1750113127263,5.63294942,156.48,156.44,3.97886459]
[1750113127264,5.63294942,156.47,156.44,3.97886459]
[1750113127891,39.81724942,156.45,156.44,3.97886459]
[1750113128089,63.31424829,156.45,156.44,3.97886459]
[1750113128292,95.52230664,156.45,156.44,3.97886459]
[1750113128780,101.91412511,156.45,156.44,3.97886459]
[1750113130073,97.20743395,156.45,156.44,3.97886459]
[1750113130882,26.0,156.42,156.39,1.331148]
[1750113131094,5.63294942,156.4,156.39,1.331148]
[1750113131278,4.69854321,156.41,156.39,1.331148]
[1750113131594,5.63294942,156.4,156.39,1.331148]
[1750113132173,26.0,156.42,156.39,1.331148]
[1750113132373,5.63294942,156.4,156.39,1.331148]
[1750113133195,32.39317881,156.42,156.39,1.331148]
[1750113133394,5.63294942,156.4,156.39,1.331148]
[1750113137974,5.63294942,156.4,156.39,7.72541873]
[1750113138492,5.63294942,156.41,156.39,7.72541873]
[1750113138893,5.63294942,156.44,156.39,13.35836815]
[1750113139189,5.63294942,156.43,156.39,7.72541873]
[1750113139394,5.63294942,156.42,156.39,7.72541873]
[1750113140192,8.1843,156.45,156.39,7.72541873]
[1750113140383,5.63294942,156.43,156.39,7.72541873]
[1750113140579,5.63294942,156.42,156.39,7.72541873]
[1750113141102,12.87456331,156.45,156.39,1.331148]
[1750113141394,5.63294942,156.41,156.39,1.331148]
[1750113142202,6.39235992,156.44,156.39,1.331148]
[1750113142386,5.63294942,156.41,156.39,1.331148]
[1750113143097,6.39265063,156.43,156.39,1.331148]
[1750113143098,5.63294942,156.4,156.39,1.331148]
[1750113143497,6.39265063,156.43,156.39,1.331148]
[1750113143687,5.63294942,156.41,156.39,1.331148]
[1750113143890,5.63294942,156.41,156.39,7.72524394]
[1750113144091,5.63294942,156.42,156.39,1.331148]
[1750113144286,5.63294942,156.41,156.39,1.331148]
[1750113144894,6.39239815,156.44,156.39,1.331148]
[1750113145106,5.63294942,156.41,156.39,1.331148]
[1750113145593,5.63294942,156.4,156.39,1.331148]
[1750113147522,12.02681131,156.4,156.39,1.331148]
[1750113148713,16.72167299,156.4,156.39,1.331148]
[1750113148892,12.02681131,156.4,156.39,1.331148]
[1750113149098,16.72167299,156.4,156.39,1.331148]
[1750113149409,12.02681131,156.4,156.39,1.331148]
[1750113149603,16.72167299,156.4,156.39,1.331148]
[1750113149804,12.02681131,156.4,156.39,1.331148]
[1750113150007,41.78358524,156.4,156.39,1.331148]
[1750113150192,36.08972335,156.4,156.39,1.331148]
[1750113150396,41.72267277,156.4,156.39,1.331148]
[1750113151298,48.11653466,156.4,156.39,1.331148]
[1750113151619,36.08972335,156.4,156.39,1.331148]
[1750113151793,37.0278111,156.4,156.39,1.331148]
[1750113152410,41.02723876,156.4,156.39,1.331148]
[1750113152616,36.3278111,156.4,156.39,1.331148]
[1750113153320,42.72167299,156.4,156.39,1.331148]
[1750113153501,53.05255661,156.4,156.39,1.331148]
[1750113153703,53.05267135,156.4,156.39,1.331148]
[1750113154016,42.72167299,156.4,156.39,1.331148]
[1750113154327,47.41979019,156.4,156.39,1.331148]
[1750113155211,43.42492851,156.4,156.39,1.331148]
[1750113155393,48.12310181,156.4,156.39,1.331148]
[1750113156297,75.98310181,156.4,156.39,1.331148]
[1750113156493,66.58681131,156.4,156.39,1.331148]
[1750113156720,75.98737315,156.4,156.39,1.331148]
[1750113157525,26.0,156.37,156.27,1.6128]
[1750113157729,75.83992425,156.4,156.27,8.01190555]
[1750113157730,26.0,156.35,156.27,8.01190555]
[1750113157927,26.0,156.35,156.24,6.1361]
[1750113157928,26.0,156.31,156.24,6.1361]
[1750113158123,5.63294942,156.3,156.24,6.40040962]
[1750113158326,26.0,156.31,156.24,6.40040962]
[1750113158518,26.0,156.31,156.24,12.03335904]
[1750113159044,7.9934,156.34,156.27,5.63294942]
[1750113159246,7.9934,156.34,156.24,5.40040962]
[1750113159247,26.0,156.31,156.24,5.40040962]
[1750113159402,16.04336515,156.36,156.24,5.40040962]
[1750113159403,28.26,156.37,156.25,6.458]
[1750113159602,9.38389914,156.36,156.32,5.63294942]
[1750113159906,6.66,156.38,156.34,5.63294942]
[1750113160234,5.63294942,156.39,156.31,6.458]
[1750113160414,5.63294942,156.39,156.34,5.63294942]
[1750113160811,5.63294942,156.39,156.31,6.458]
[1750113161009,5.63294942,156.39,156.34,5.63294942]
[1750113161210,26.0,156.31,156.16,32.01758826]
[1750113161416,0.14216157,156.28,156.16,5.63294942]
[1750113161614,4.68960306,156.27,156.21,5.63294942]
[1750113161911,5.63294942,156.24,156.14,6.458]
[1750113162115,5.63294942,156.24,156.17,26.0]
[1750113162326,5.63294942,156.24,156.17,32.40293469]
[1750113162621,5.63294942,156.24,156.18,5.63294942]
[1750113162815,8.52509894,156.24,156.18,8.52509894]
[1750113163039,8.52509894,156.23,156.17,40.92803363]
[1750113163218,18.79181043,156.26,156.14,6.458]
[1750113163407,8.52509894,156.25,156.19,12.31190452]
[1750113163608,8.52509894,156.24,156.19,3.78680558]
[1750113164028,45.49826811,156.27,156.2,8.52509894]
[1750113164029,6.39952781,156.27,156.2,8.52509894]
[1750113164226,4.67662672,156.27,156.19,3.78680558]
[1750113164433,8.52509894,156.25,156.19,18.71418714]
[1750113164630,9.35304994,156.27,156.19,10.1890882]
[1750113164933,8.52509894,156.25,156.19,18.71418714]
[1750113165139,26.0,156.28,156.19,10.1890882]
[1750113165436,0.7,156.26,156.19,18.71418714]
[1750113165658,0.7,156.26,156.2,8.52509894]
[1750113165847,8.52509894,156.25,156.2,8.52509894]
[1750113166026,0.7,156.26,156.2,8.52509894]
[1750113166227,0.7,156.26,156.19,10.1890882]
[1750113166452,0.7,156.26,156.2,8.52509894]
[1750113166763,9.22509894,156.26,156.2,8.52509894]
[1750113166959,9.22509894,156.26,156.19,10.1890882]
[1750113167452,8.52509894,156.23,156.19,3.28680558]
[1750113168249,6.40041203,156.24,156.19,3.28680558]
[1750113168460,8.52509894,156.23,156.19,3.28680558]
[1750113168645,6.40041203,156.24,156.19,3.28680558]
[1750113168646,8.52509894,156.22,156.19,3.28680558]
[1750113168954,8.52509894,156.23,156.19,3.28680558]
[1750113169532,6.39959042,156.26,156.19,9.68925708]
[1750113169729,8.52509894,156.24,156.19,18.21435602]
[1750113170655,34.52509894,156.26,156.21,8.52509894]
[1750113170856,0.7,156.25,156.21,8.52509894]
[1750113171429,8.52509894,156.27,156.22,8.52509894]
[1750113171753,7.24,156.29,156.23,14.92591824]
[1750113171962,8.52509894,156.29,156.24,8.52509894]
[1750113172145,8.52509894,156.3,156.25,8.52509894]
[1750113172529,15.73012141,156.31,156.25,8.52509894]
[1750113172743,8.52509894,156.3,156.25,8.52509894]
[1750113173343,61.357246,156.32,156.25,8.52509894]
[1750113173565,8.52509894,156.29,156.24,8.52509894]
[1750113173865,8.52509894,156.29,156.24,14.9252738]
[1750113174561,4.66734546,156.31,156.24,14.9252738]
[1750113174758,8.52509894,156.29,156.24,14.9252738]
[1750113174957,4.66734546,156.31,156.24,14.9252738]
[1750113175162,8.52509894,156.29,156.24,14.9252738]
[1750113175474,0.7,156.28,156.26,8.52509894]
[1750113175657,8.52509894,156.3,156.26,8.52509894]
[1750113175835,8.52509894,156.3,156.25,8.52509894]
[1750113176543,8.52509894,156.3,156.26,8.52509894]
[1750113176938,6.39756306,156.31,156.26,14.92461364]
[1750113177146,8.52509894,156.3,156.26,14.92461364]
[1750113177338,6.39756306,156.31,156.21,16.00387638]
[1750113177339,8.52509894,156.29,156.25,8.52509894]
[1750113177648,8.52509894,156.3,156.25,8.52509894]
[1750113178362,8.52509894,156.31,156.26,8.52509894]
[1750113179270,8.52509894,156.31,156.26,6.39921757]
[1750113179483,6.39760199,156.31,156.23,14.92591824]
[1750113179777,31.72805558,156.31,156.2,10.05089894]
[1750113180065,8.52509894,156.25,156.2,10.05089894]
[1750113180248,8.52509894,156.25,156.19,3.28680558]
[1750113180453,8.52509894,156.23,156.19,3.28680558]
[1750113180864,8.52509894,156.22,156.19,3.28680558]
[1750113181263,8.52509894,156.21,156.19,3.28680558]
[1750113181464,8.52509894,156.2,156.19,3.28680558]
[1750113181959,13.19188902,156.2,156.19,3.28680558]
[1750113182459,57.98369945,156.2,156.19,3.28680558]
[1750113182661,64.98265284,156.2,156.19,3.28680558]
[1750113182858,30.4575539,156.2,156.19,3.28680558]
[1750113183074,4.66679008,156.2,156.19,3.28680558]
[1750113183851,13.19188902,156.2,156.19,3.28680558]
[1750113184076,4.66679008,156.2,156.19,3.28680558]
[1750113184397,13.19188902,156.2,156.19,3.28680558]
[1750113184575,4.66019728,156.2,156.19,3.28680558]
[1750113184770,13.18760666,156.2,156.19,3.28680558]
[1750113184953,4.66250772,156.2,156.19,3.28680558]
[1750113185291,13.18760666,156.2,156.19,3.28680558]
[1750113185494,4.66250772,156.2,156.19,3.28680558]
[1750113185789,4.66250772,156.2,156.19,9.68926412]
[1750113187789,6.6083,156.25,156.19,18.21436306]
[1750113187961,13.18855939,156.24,156.19,18.21436306]
[1750113188160,8.52509894,156.22,156.19,3.28680558]
[1750113188365,4.66346045,156.21,156.19,9.68915357]
[1750113188680,4.66346045,156.2,156.19,9.68915357]
[1750113189386,4.66142472,156.2,156.19,3.28680558]
[1750113189780,4.66142472,156.2,156.19,9.68926412]
[1750113190175,2.33071234,156.24,156.19,3.28680558]
[1750113190362,13.18553266,156.23,156.19,9.68926412]
[1750113190561,4.66043372,156.22,156.19,9.68926412]
[1750113190790,4.66043372,156.21,156.19,3.28680558]
[1750113191001,4.66043372,156.2,156.19,3.28680558]
[1750113191195,4.66043372,156.2,156.19,9.68926412]
[1750113192061,13.18553266,156.2,156.19,3.28680558]
[1750113192258,4.66043372,156.2,156.19,3.28680558]
[1750113192675,4.66043372,156.2,156.19,18.21436306]
[1750113192973,4.66043372,156.2,156.19,3.28680558]
[1750113193155,4.66043372,156.2,156.19,18.21436306]
[1750113193359,4.66043372,156.2,156.19,9.68926412]
[1750113193581,4.66043372,156.2,156.19,18.21436306]
[1750113193976,4.66043372,156.2,156.19,3.28680558]
[1750113194170,4.66043372,156.2,156.19,11.81190452]
[1750113194361,4.66043372,156.2,156.19,3.28680558]
[1750113196067,4.67175381,156.2,156.19,3.28680558]
[1750113198086,4.68014002,156.2,156.19,3.28680558]
[1750113198794,4.68014002,156.2,156.19,18.21436306]
[1750113198966,4.68689382,156.2,156.19,18.21436306]
[1750113199392,4.68689382,156.2,156.19,9.68926412]
[1750113199561,4.68689382,156.2,156.19,18.21436306]
[1750113201005,4.68689382,156.2,156.19,17.71436306]
[1750113201206,4.66590719,156.26,156.19,9.18926412]
[1750113201511,6.3319,156.28,156.19,17.71436306]
[1750113201512,8.52509894,156.24,156.19,17.71436306]
[1750113201807,11.73493266,156.23,156.19,9.18926412]
[1750113201995,4.69733464,156.26,156.23,6.4008193]
[1750113202195,11.74369958,156.25,156.23,14.92591824]
[1750113202384,4.69758158,156.24,156.22,8.52509894]
[1750113202690,4.69758158,156.23,156.2,22.40717028]
[1750113202990,7.04649123,156.26,156.2,22.40717028]
[1750113203293,4.69855991,156.25,156.2,22.40717028]
[1750113203493,4.69855991,156.24,156.2,22.40717028]
[1750113203669,7.04825332,156.28,156.23,8.52509894]
[1750113203874,7.04825332,156.27,156.24,8.52509894]
[1750113204085,13.22499226,156.29,156.24,14.92534336]
[1750113204284,15.57528788,156.28,156.2,16.00512163]
[1750113204492,7.05018894,156.27,156.23,8.52509894]
[1750113204685,7.05018894,156.26,156.23,8.52509894]
[1750113204894,13.22499226,156.28,156.23,8.52509894]
[1750113205088,7.04963576,156.27,156.23,8.52509894]
[1750113205285,2.34993593,156.26,156.23,8.52509894]
[1750113205488,4.69989657,156.27,156.23,14.92554481]
[1750113205681,4.69989332,156.28,156.23,14.92554481]
[1750113205877,7.05000066,156.27,156.23,14.92554481]
[1750113206081,4.69626835,156.28,156.23,14.92554481]
[1750113206275,7.05002973,156.27,156.23,14.92554481]
[1750113206473,7.05002973,156.26,156.23,14.92554481]
[1750113206830,26.0,156.27,156.19,2.78680558]
[1750113206997,8.52509894,156.22,156.19,2.78680558]
[1750113207174,10.87732679,156.21,156.19,2.78680558]
[1750113207374,8.52509894,156.22,156.19,2.78680558]
[1750113207683,8.52509894,156.25,156.2,8.52509894]
[1750113208000,20.27957151,156.24,156.19,11.31190452]
[1750113208190,7.05270997,156.23,156.2,8.52509894]
[1750113208494,2.35017618,156.22,156.2,8.52509894]
[1750113208702,4.70048808,156.24,156.2,8.52509894]
[1750113208997,7.05001032,156.23,156.2,14.92681297]
[1750113209202,2.35036471,156.22,156.2,14.92681297]
[1750113209381,2.35041047,156.23,156.2,14.92681297]
[1750113209585,4.70061967,156.24,156.2,8.52509894]
[1750113209783,19.62551739,156.25,156.2,8.52509894]
[1750113209974,7.05072118,156.24,156.2,8.52509894]
[1750113210169,13.22546697,156.25,156.2,8.52509894]
[1750113210403,7.05062032,156.24,156.2,8.52509894]
[1750113210576,19.62554238,156.25,156.2,8.52509894]
[1750113210785,7.05001851,156.24,156.2,8.52509894]
[1750113210988,4.69995578,156.24,156.2,8.52509894]
[1750113211288,2.35037347,156.23,156.2,8.52509894]
[1750113211484,7.05111819,156.24,156.2,8.52509894]
[1750113211683,2.35027856,156.23,156.2,8.52509894]
[1750113211896,4.70060816,156.24,156.2,8.52509894]
[1750113212095,2.35004141,156.23,156.2,8.52509894]
[1750113212279,19.62554238,156.25,156.2,8.52509894]
[1750113212280,7.04977293,156.24,156.2,8.52509894]
[1750113212476,2.34982878,156.23,156.2,8.52509894]
[1750113212682,7.04910321,156.24,156.2,8.52509894]
[1750113212895,4.69927443,156.24,156.21,8.52509894]
[1750113213077,11.09969173,156.24,156.21,8.52509894]
[1750113213291,11.09969173,156.24,156.2,8.52509894]
[1750113213984,11.09969173,156.24,156.19,2.78680558]
[1750113213985,11.09969173,156.24,156.21,8.52509894]
[1750113214186,2.35001027,156.23,156.2,8.52509894]
[1750113214406,4.69933092,156.24,156.21,8.52509894]
[1750113214605,7.04922513,156.24,156.21,8.52509894]
[1750113214993,4.69949177,156.24,156.21,8.52509894]
[1750113215178,11.10015765,156.24,156.21,8.52509894]
[1750113215510,11.74937026,156.23,156.19,2.78680558]
[1750113215709,11.74863412,156.22,156.2,8.52509894]
[1750113215915,4.69965468,156.23,156.21,8.52509894]
[1750113216208,7.04954074,156.22,156.21,8.52509894]
[1750113216501,6.40043841,156.24,156.21,8.52509894]
[1750113217000,4.70123677,156.24,156.22,34.52509894]
[1750113217179,15.80090121,156.26,156.22,34.52509894]
[1750113217382,7.052699,156.25,156.22,34.52509894]
[1750113217591,2.35082867,156.24,156.22,34.52509894]
[1750113217903,7.05256391,156.25,156.22,34.52509894]
[1750113218106,4.70212966,156.25,156.22,34.52509894]
[1750113218311,4.70212966,156.25,156.22,26.0]
[1750113218515,14.92480179,156.26,156.22,26.0]
[1750113218703,7.05317234,156.25,156.22,26.0]
[1750113219006,19.62691679,156.26,156.22,26.0]
[1750113219194,18.15604829,156.25,156.22,26.0]
[1750113219385,7.05390001,156.24,156.22,26.0]
[1750113219583,11.10214828,156.25,156.22,26.0]
[1750113219783,7.05591433,156.24,156.22,26.0]
[1750113220086,11.10214828,156.25,156.22,34.52509894]
[1750113220390,7.05596614,156.24,156.22,26.0]
[1750113220587,11.10214828,156.25,156.22,26.0]
[1750113220794,7.05917017,156.24,156.22,26.0]
[1750113221114,6.40003328,156.25,156.22,26.0]
[1750113221289,4.70838841,156.24,156.22,26.0]
[1750113221606,6.40003328,156.25,156.22,26.0]
[1750113221841,5.68157176,156.23,156.19,2.78680558]
[1750113221988,17.45198413,156.22,156.19,2.78680558]
[1750113222182,7.06280409,156.21,156.19,2.78680558]
[1750113222391,5.68157176,156.22,156.19,2.78680558]
[1750113222605,7.06148116,156.21,156.2,26.0]
[1750113222911,7.06148116,156.21,156.19,8.46837734]
[1750113223107,10.38942992,156.22,156.19,2.78680558]
[1750113223294,11.77348454,156.21,156.2,26.0]
[1750113223496,11.77348454,156.21,156.19,2.78680558]
[1750113223698,7.06562638,156.2,156.19,2.78680558]
[1750113224304,2.35584001,156.2,156.19,2.78680558]
[1750113224705,7.0674696,156.2,156.19,2.78680558]
[1750113225090,7.06851046,156.2,156.19,2.78680558]
[1750113228406,23.8677627,156.2,156.19,2.78680558]
[1750113230006,23.87094246,156.2,156.19,2.78680558]
[1750113230211,18.1893707,156.2,156.19,2.78680558]
[1750113230405,23.87094246,156.2,156.19,2.28680558]
[1750113231526,17.46889381,156.2,156.19,2.28680558]
[1750113232511,11.78732205,156.2,156.19,2.28680558]
[1750113232828,11.78765113,156.2,156.19,2.28680558]
[1750113234538,11.78704311,156.2,156.19,2.28680558]
[1750113235538,11.78548853,156.2,156.19,2.28680558]
[1750113235943,11.78531246,156.2,156.19,2.28680558]
[1750113236741,11.78468954,156.2,156.19,2.28680558]
[1750113238338,11.78422277,156.2,156.19,2.28680558]
[1750113238640,11.78368286,156.2,156.19,2.28680558]
[1750113239014,23.86730327,156.2,156.19,2.28680558]
[1750113239213,11.78368286,156.2,156.19,2.28680558]
[1750113239417,17.46525462,156.2,156.19,2.28680558]
[1750113240122,17.464719,156.2,156.19,2.28680558]